bitfinex-derivatives/quotes_SOLF0:USTF0_20220108
["timestamp","ask_amount","ask_price","bid_price","bid_amount"]
[1641656892142,27.66479,144.01,143.9,45.56164655]
[1641656892346,27.66479,144.01,143.91,5.736]
[1641656892543,27.66479,144.01,143.92,4.0]
[1641656892743,27.66479,144.01,143.91,5.736]
[1641656892942,27.66479,144.01,143.91,1.736]
[1641656893145,27.66479,144.01,143.91,5.736]
[1641656893444,27.66479,144.01,143.95,27.66479]
[1641656893645,27.66479,144.01,143.95,34.29779]
[1641656894946,34.61309461,144.03,143.95,34.29779]
[1641656895149,6.94830461,144.03,143.95,27.66479]
[1641656895347,4.0,144.01,143.95,27.66479]
[1641656895548,9.55542886,144.01,143.9,27.66479]
[1641656896148,4.0,144.0,143.9,27.66479]
[1641656896349,4.0,143.95,143.9,27.66479]
[1641656896548,6.425,143.97,143.9,27.66479]
[1641656896952,5.55712767,143.96,143.9,27.66479]
[1641656897349,9.55712767,143.96,143.9,27.66479]
[1641656897551,5.55757734,143.95,143.9,27.66479]
[1641656898151,6.425,143.97,143.9,27.66479]
[1641656898450,5.55736608,143.96,143.9,27.66479]
[1641656899051,5.55778141,143.95,143.9,27.66479]
[1641656899549,9.55778141,143.95,143.9,27.66479]
[1641656899750,5.55778141,143.95,143.91,3.13747362]
[1641656900154,11.11564672,143.95,143.91,3.13747362]
[1641656900351,11.11564672,143.95,143.9,27.66479]
[1641656901250,11.11564672,143.95,143.91,3.13790762]
[1641656901950,11.11564672,143.95,143.9,27.66479]
[1641656902149,17.78464672,143.95,143.9,27.66479]
[1641656902349,4.0,143.91,143.88,27.66479]
[1641656902550,11.317,143.91,143.87,14.71326333]
[1641656902752,5.56025767,143.88,143.87,14.71326333]
[1641656902949,11.20425767,143.88,143.83,38.71942923]
[1641656903953,11.20425767,143.88,143.81,27.66479]
[1641656904154,5.644,143.88,143.81,27.66479]
[1641656904352,27.66479,143.9,143.81,27.66479]
[1641656905355,7.317,143.91,143.84,27.66479]
[1641656906555,4.0,143.9,143.84,27.66479]
[1641656906756,5.55996931,143.89,143.84,27.66479]
[1641656907355,5.55996931,143.89,143.81,66.38421923]
[1641656907965,7.317,143.91,143.81,66.38421923]
[1641656908163,34.33531871,143.92,143.81,27.66479]
[1641656908563,5.55993371,143.89,143.81,27.66479]
[1641656908763,10.99793371,143.89,143.81,27.66479]
[1641656910067,5.55993371,143.89,143.81,27.66479]
[1641656910467,5.55880837,143.92,143.82,4.0]
[1641656910667,5.55880837,143.92,143.83,12.68699479]
[1641656910865,6.66909694,143.95,143.84,4.0]
[1641656911068,6.66909694,143.95,143.85,1.737]
[1641656911365,6.66909694,143.95,143.85,7.53]
[1641656911567,6.66909694,143.95,143.9,27.66479]
[1641656913966,4.0,143.94,143.9,27.66479]
[1641656914167,6.73,143.94,143.9,27.66479]
[1641656914566,4.0,143.93,143.9,27.66479]
[1641656914766,6.73,143.94,143.9,27.66479]
[1641656917467,5.5587884,143.92,143.87,27.66479]
[1641656917667,5.5587884,143.92,143.84,27.66479]
[1641656917867,5.55993121,143.89,143.84,27.66479]
[1641656918069,4.0,143.87,143.84,27.66479]
[1641656918267,5.56075165,143.87,143.82,38.71942923]
[1641656919069,8.611,143.88,143.82,38.71942923]
[1641656919468,8.611,143.88,143.82,27.66479]
[1641656920267,6.95313586,143.93,143.82,27.66479]
[1641656920469,12.51175619,143.93,143.82,35.12779]
[1641656921069,12.51175619,143.93,143.86,4.91127701]
[1641656921271,5.55862033,143.93,143.86,12.50927701]
[1641656921469,5.55862033,143.93,143.89,27.66479]
[1641656921668,4.90686597,143.94,143.89,34.34379]
[1641656922672,6.66873907,143.96,143.91,4.91127701]
[1641656923573,6.66873907,143.96,143.92,4.91127701]
[1641656924174,4.90686597,143.99,143.92,10.85427701]
[1641656924575,7.99766919,144.05,143.94,4.0]
[1641656924776,38.71942923,144.06,143.93,1.736]
[1641656924975,38.71942923,144.06,143.93,5.736]
[1641656925579,4.0,144.07,143.98,27.66479]
[1641656925779,4.0,144.06,143.98,27.66479]
[1641656926476,4.0,144.06,143.99,3.14056533]
[1641656926977,9.55337502,144.06,143.99,3.14056533]
[1641656927177,4.0,144.05,143.99,3.14056533]
[1641656927477,9.55337502,144.06,143.99,3.14056533]
[1641656927776,9.55337502,144.06,143.98,27.66479]
[1641656927981,4.0,144.05,143.98,27.66479]
[1641656928377,5.55337502,144.06,143.98,27.66479]
[1641656928577,5.55337502,144.06,143.98,34.39579]
[1641656929976,5.55337502,144.06,143.98,27.66479]
[1641656932379,58.00757666,144.2,144.05,4.0]
[1641656932581,39.14297902,144.16,144.15,4.0]
[1641656932783,25.13700589,144.21,144.15,12.785]
[1641656932980,70.29345924,144.25,144.16,5.733]
[1641656933382,70.29345924,144.25,144.18,4.0]
[1641656933585,25.09345924,144.25,144.24,55.32958]
[1641656933788,14.64660522,144.33,144.24,67.71858]
[1641656933982,4.0,144.32,144.24,61.98558]
[1641656934583,4.0,144.3,144.24,61.98558]
[1641656934883,4.0,144.32,144.24,61.98558]
[1641656935283,4.0,144.3,144.24,61.98558]
[1641656935484,4.0,144.27,144.24,61.98558]
[1641656935683,4.0,144.29,144.24,61.98558]
[1641656935884,4.0,144.31,144.24,34.32079]
[1641656936085,4.0,144.25,144.24,27.66479]
[1641656936383,4.0,144.25,144.16,65.3194]
[1641656936584,7.996,144.28,144.16,65.3194]
[1641656936984,4.0,144.33,144.18,4.0]
[1641656937185,4.0,144.32,144.19,4.0]
[1641656937385,4.0,144.32,144.2,5.732]
[1641656937585,4.0,144.32,144.25,27.66479]
[1641656938185,4.0,144.31,144.25,27.66479]
[1641656938486,4.0,144.3,144.25,27.66479]
[1641656938691,4.0,144.28,144.22,27.66479]
[1641656938886,20.0,144.31,144.22,27.66479]
[1641656938887,6.294,144.3,144.22,27.66479]
[1641656939288,4.0,144.27,144.22,27.66479]
[1641656939488,12.41,144.27,144.22,27.66479]
[1641656940390,4.0,144.23,144.2,27.66479]
[1641656940588,12.467,144.24,144.2,27.66479]
[1641656940792,8.467,144.24,144.2,27.66479]
[1641656941591,4.0,144.21,144.2,27.66479]
[1641656941792,6.15,144.22,144.2,27.66479]
[1641656942591,10.15,144.22,144.2,27.66479]
[1641656942790,6.15,144.22,144.2,27.66479]
[1641656942990,4.0,144.21,144.2,27.66479]
[1641656943191,10.15,144.22,144.2,27.66479]
[1641656943492,6.15,144.22,144.2,27.66479]
[1641656944195,5.54608638,144.25,144.2,27.66479]
[1641656944594,4.0,144.27,144.2,27.66479]
[1641656944794,6.65257434,144.31,144.2,27.66479]
[1641656945194,10.65257434,144.31,144.2,27.66479]
[1641656945395,4.0,144.3,144.2,27.66479]
[1641656945594,9.54396447,144.31,144.2,27.66479]
[1641656945794,9.54396447,144.31,144.25,27.66479]
[1641656946197,5.54396447,144.31,144.25,27.66479]
[1641656946595,9.54396447,144.31,144.25,27.66479]
[1641656946796,5.54396447,144.31,144.25,27.66479]
[1641656947000,9.54396447,144.31,144.25,27.66479]
[1641656947196,4.0,144.27,144.25,27.66479]
[1641656947696,4.0,144.26,144.25,27.66479]
[1641656948098,4.0,144.26,144.2,27.66479]
[1641656949400,5.54484116,144.28,144.2,27.66479]
[1641656949803,5.54484116,144.28,144.2,55.32958]
[1641656950602,4.0,144.27,144.2,55.32958]
[1641656951004,5.54484116,144.28,144.2,55.32958]
[1641656951902,4.0,144.24,144.2,55.32958]
[1641656952303,12.837,144.24,144.2,55.32958]
[1641656952504,8.837,144.24,144.2,55.32958]
[1641656953505,9.54453853,144.29,144.2,55.32958]
[1641656954106,5.54453853,144.29,144.2,55.32958]
[1641656954305,9.54453853,144.29,144.2,55.32958]
[1641656954705,4.0,144.28,144.2,55.32958]
[1641656955405,5.54453853,144.29,144.2,55.32958]
[1641656956006,5.54453853,144.29,144.25,27.66479]
[1641656956810,4.0,144.28,144.25,27.66479]
[1641656957007,9.54534936,144.27,144.25,27.66479]
[1641656957208,5.54534936,144.27,144.25,27.66479]
[1641656957410,5.54534936,144.27,144.2,27.66479]
[1641656957811,5.54610198,144.25,144.2,27.66479]
[1641656958011,5.54610198,144.25,144.2,55.32958]
[1641656961015,6.65392029,144.28,144.2,55.32958]
[1641656961224,4.0,144.31,144.2,62.46358]
[1641656961416,5.54414678,144.3,144.2,62.46358]
[1641656961816,6.65153931,144.33,144.2,62.46358]
[1641656962017,14.64660522,144.35,144.31,27.66479]
[1641656962417,14.64660522,144.35,144.29,27.66479]
[1641656962816,7.98050893,144.36,144.29,27.66479]
[1641656963719,7.98050893,144.36,144.3,3.14935494]
[1641656963921,4.0,144.34,144.3,3.14935494]
[1641656964122,5.54287132,144.33,144.3,3.14935494]
[1641656964721,5.54287132,144.33,144.27,3.14935494]
[1641656964922,5.54349194,144.32,144.27,3.14935494]
[1641656965521,5.54349194,144.32,144.26,27.66479]
[1641656967122,9.54349194,144.32,144.26,27.66479]
[1641656967324,5.54349194,144.32,144.26,27.66479]
[1641656967924,5.54385108,144.31,144.26,27.66479]
[1641656968523,21.2967134,144.36,144.26,27.66479]
[1641656968725,4.0,144.33,144.26,27.66479]
[1641656969125,6.65010818,144.36,144.27,3.14658296]
[1641656970126,6.65010818,144.36,144.26,27.66479]
[1641656970527,14.64660522,144.38,144.26,31.66479]
[1641656970727,4.0,144.35,144.27,1.732]
[1641656970928,4.0,144.35,144.27,3.14456031]
[1641656971227,4.0,144.34,144.27,3.14456031]
[1641656971428,4.0,144.37,144.27,3.14456031]
[1641656972033,5.54119749,144.38,144.27,3.14456031]
[1641656972232,5.54119749,144.38,144.29,27.66479]
[1641656972832,5.54119749,144.38,144.29,35.94479]
[1641656973636,5.54119749,144.38,144.3,4.0]
[1641656973832,5.54089962,144.39,144.29,35.94479]
[1641656975433,27.66479,144.4,144.33,6.92880651]
[1641656975633,9.522e-05,144.42,144.33,13.52980651]
[1641656975832,38.67669329,144.46,144.41,6.924009]
[1641656976032,57.80002366,144.5,144.42,5.73]
[1641656976233,57.80002366,144.5,144.49,62.25071368]
[1641656976635,72.9661,144.55,144.49,62.25071368]
[1641656976836,4.0,144.55,144.49,67.59771368]
[1641656977235,4.0,144.55,144.49,39.93292368]
[1641656978237,4.0,144.55,144.49,67.59771368]
[1641656979438,4.0,144.53,144.49,67.59771368]
[1641656979638,4.0,144.52,144.49,60.67658]
[1641656979837,4.0,144.51,144.43,6.9237693]
[1641656980038,5.53673693,144.49,144.43,6.9237693]
[1641656980239,27.66479,144.48,144.43,6.9237693]
[1641656980739,33.20200396,144.48,144.43,6.9237693]
[1641656981840,5.53721396,144.48,144.43,6.9237693]
[1641656982041,9.53640974,144.5,144.43,6.9237693]
[1641656982244,37.20119974,144.5,144.43,6.9237693]
[1641656982541,5.53719408,144.48,144.43,6.9237693]
[1641656983642,27.66479,144.5,144.43,6.9237693]
[1641656983841,4.0,144.52,144.43,6.9237693]
[1641656984044,4.0,144.52,144.44,6.92328995]
[1641656984242,9.53528109,144.53,144.45,27.66479]
[1641656984443,9.53528109,144.53,144.44,14.82328995]
[1641656985443,5.53628421,144.51,144.44,14.82328995]
[1641656985643,4.0,144.5,144.44,14.82328995]
[1641656986043,4.0,144.46,144.44,7.9]
[1641656986244,5.53865147,144.44,144.35,4.84370242]
[1641656986445,5.5396534,144.42,144.35,4.84370242]
[1641656986945,5.5396534,144.42,144.33,90.28049]
[1641656987146,60.86783551,144.45,144.35,6.92688671]
[1641656987346,5.53825551,144.45,144.37,6.92592721]
[1641656987548,10.64486723,144.48,144.37,6.92592721]
[1641656987845,12.18228115,144.48,144.37,6.92592721]
[1641656988046,5.53741392,144.48,144.37,6.92592721]
[1641656988246,5.53741392,144.48,144.4,27.66479]
[1641656988447,31.66479,144.51,144.41,6.924009]
[1641656988846,4.0,144.5,144.41,6.924009]
[1641656989247,4.0,144.48,144.41,6.924009]
[1641656989447,9.53703475,144.49,144.41,6.924009]
[1641656990652,5.53703475,144.49,144.41,6.924009]
[1641656991551,4.0,144.47,144.41,6.924009]
[1641656991752,4.0,144.48,144.41,6.924009]
[1641656991950,5.53821043,144.46,144.38,34.59047737]
[1641656992551,5.53821043,144.46,144.38,6.92568737]
[1641656992951,6.64429927,144.49,144.4,6.92448845]
[1641656993652,51.66479,144.51,144.4,6.92448845]
[1641656993653,4.0,144.46,144.4,6.92448845]
[1641656993853,5.5378505,144.47,144.4,6.92448845]
[1641656997660,5.5378505,144.47,144.4,12.74148845]
[1641656998057,6.64388376,144.5,144.4,12.74148845]
[1641656998556,6.64388376,144.5,144.44,6.92281066]
[1641657000457,5.53715351,144.48,144.44,6.92281066]
[1641657003058,4.84370242,144.52,144.44,6.92281066]
[1641657003259,4.84370242,144.52,144.44,19.47481066]
[1641657003457,4.84370242,144.52,144.44,15.47481066]
[1641657003659,4.84370242,144.52,144.44,19.47481066]
[1641657003860,4.84370242,144.52,144.44,15.47481066]
[1641657004560,4.84370242,144.53,144.44,20.31851308]
[1641657005464,4.0,144.47,144.44,4.84370242]
[1641657005663,5.53752026,144.47,144.45,7.99597425]
[1641657006864,5.53752026,144.47,144.45,4.84370242]
[1641657007065,5.53752026,144.47,144.43,32.50849242]
[1641657008669,10.38081457,144.48,144.43,32.50849242]
[1641657010371,4.84370242,144.47,144.43,32.50849242]
[1641657013573,10.38124571,144.47,144.43,32.50849242]
[1641657014878,4.84370242,144.46,144.43,32.50849242]
[1641657015279,4.84370242,144.46,144.44,6.92281066]
[1641657015481,4.84370242,144.46,144.44,15.58381066]
[1641657015681,4.84370242,144.49,144.45,4.84370242]
[1641657016181,8.84370242,144.49,144.45,4.84370242]
[1641657016383,4.84370242,144.49,144.45,4.84370242]
[1641657016783,4.84370242,144.48,144.44,4.84370242]
[1641657017886,4.84370242,144.47,144.43,32.50849242]
[1641657019187,10.38131152,144.47,144.43,32.50849242]
[1641657019487,4.0,144.45,144.43,32.50849242]
[1641657019690,5.53840188,144.45,144.42,4.84370242]
[1641657020690,10.3821043,144.45,144.41,4.84370242]
[1641657020889,14.3821043,144.45,144.41,4.84370242]
[1641657021290,9.53958528,144.42,144.41,4.84370242]
[1641657021690,5.53958528,144.42,144.4,8.00177506]
[1641657021890,5.54104915,144.38,144.37,8.70072758]
[1641657022090,37.14704915,144.38,144.3,53.69748636]
[1641657022291,6.65170577,144.33,144.3,38.45306508]
[1641657022490,20.0,144.35,144.27,38.45306508]
[1641657022691,47.66479,144.35,144.27,38.45306508]
[1641657023095,51.66479,144.35,144.27,38.45306508]
[1641657023594,51.66479,144.35,144.25,27.66479]
[1641657023794,47.66479,144.35,144.25,27.66479]
[1641657024996,4.0,144.33,144.25,27.66479]
[1641657025195,47.66479,144.35,144.25,27.66479]
[1641657025395,47.66479,144.35,144.25,33.20679]
[1641657025596,47.66479,144.35,144.26,6.93120776]
[1641657025797,27.66479,144.35,144.26,6.93120776]
[1641657026597,4.0,144.35,144.26,6.93120776]
[1641657026797,4.0,144.35,144.3,27.66479]
[1641657026997,4.0,144.36,144.3,33.99079]
[1641657027196,4.0,144.36,144.3,6.326]
[1641657027799,9.5420421,144.36,144.3,6.326]
[1641657027998,5.5420421,144.36,144.3,6.326]
[1641657028199,5.5420421,144.36,144.3,13.25552671]
[1641657028800,5.5420421,144.36,144.33,27.66479]
[1641657029000,5.5420421,144.36,144.33,33.16179]
[1641657029200,100.87732949,144.43,144.33,33.16179]
[1641657029400,38.31162949,144.43,144.33,33.16179]
[1641657030099,4.0,144.39,144.33,33.16179]
[1641657030303,5.54028335,144.4,144.33,33.16179]
[1641657035408,6.64663123,144.44,144.35,6.92688671]
[1641657035609,12.18548731,144.44,144.35,6.92688671]
[1641657035809,5.53885608,144.44,144.35,6.92688671]
[1641657036010,5.53853567,144.45,144.35,6.92688671]
[1641657036209,5.53853567,144.45,144.35,10.92688671]
[1641657036407,5.53853567,144.45,144.35,6.92688671]
[1641657036808,5.53853567,144.45,144.37,27.66479]
[1641657037009,5.53853567,144.45,144.37,33.81979]
[1641657037208,5.53938757,144.43,144.37,33.81979]
[1641657037611,4.0,144.42,144.37,6.155]
[1641657037810,5.5401606,144.41,144.37,6.155]
[1641657038711,37.2049506,144.41,144.37,6.155]
[1641657038910,33.2049506,144.41,144.37,6.155]
[1641657039309,6.64666284,144.44,144.37,6.155]
[1641657040711,6.64666284,144.44,144.38,27.66479]
[1641657042816,4.0,144.42,144.34,71.90486656]
[1641657043015,5.53984939,144.41,144.34,64.9775]
[1641657043617,6.64633942,144.45,144.34,64.9775]
[1641657043816,6.64633942,144.45,144.34,70.3575]
[1641657044818,5.53946641,144.42,144.34,70.3575]
[1641657045218,5.53987514,144.41,144.34,70.3575]
[1641657046221,5.53987514,144.41,144.34,64.9775]
[1641657046420,5.54063599,144.39,144.34,64.9775]
[1641657046620,5.54063599,144.39,144.33,62.25766646]
[1641657046825,4.0,144.38,144.33,62.25766646]
[1641657047026,4.0,144.35,144.3,110.42665776]
[1641657047226,6.931,144.35,144.3,110.42665776]
[1641657047426,6.931,144.35,144.3,71.35248663]
[1641657047827,6.931,144.35,144.3,6.92928663]
[1641657048226,34.31388117,144.39,144.3,6.92928663]
[1641657048426,34.31388117,144.39,144.3,14.66028663]
[1641657048626,5.54119088,144.38,144.3,14.66028663]
[1641657048828,5.54119088,144.38,144.3,42.32507663]
[1641657049025,5.54119088,144.38,144.3,46.32507663]
[1641657049226,5.54119088,144.38,144.3,42.32507663]
[1641657050227,27.66479,144.41,144.31,4.0]
[1641657050727,6.64696009,144.43,144.31,4.0]
[1641657050926,6.64696009,144.43,144.34,27.66479]
[1641657051126,6.64696009,144.43,144.34,35.30279]
[1641657051929,6.64696009,144.43,144.34,42.23015656]
[1641657052428,95.37849,144.47,144.38,6.92568737]
[1641657052629,7.97323741,144.49,144.38,13.93068737]
[1641657052830,7.97323741,144.49,144.4,27.66479]
[1641657053429,19.6795858,144.48,144.4,27.66479]
[1641657054531,7.97323741,144.49,144.4,34.5895182]
[1641657055132,11.80872057,144.48,144.4,34.5895182]
[1641657055331,10.93216873,144.41,144.36,39.07417113]
[1641657055531,24.0,144.37,144.31,58.5315532]
[1641657055731,24.0,144.37,144.24,26.78951103]
[1641657055732,6.65072325,144.35,144.3,11.7078427]
[1641657055932,8.277,144.37,144.3,11.7078427]
[1641657056333,8.277,144.37,144.32,4.0]
[1641657056533,8.277,144.37,144.28,4.0]
[1641657056734,7.97661393,144.43,144.34,4.0]
[1641657056933,27.66479,144.39,144.34,4.0]
[1641657057435,27.66479,144.39,144.35,4.0]
[1641657057634,27.66479,144.39,144.33,4.0]
[1641657057834,27.66479,144.41,144.38,4.0]
[1641657058335,181.04145153,144.48,144.39,4.0]
[1641657058535,6.64453096,144.48,144.41,4.0]
[1641657058934,27.66479,144.47,144.44,4.0]
[1641657059136,27.66479,144.5,144.44,5.631]
[1641657062139,33.20114724,144.5,144.44,5.631]
[1641657063939,33.20114724,144.5,144.44,9.631]
[1641657064139,27.66479,144.5,144.44,9.631]
[1641657064344,33.20001935,144.53,144.44,9.631]
[1641657064540,33.20001935,144.53,144.44,12.55357104]
[1641657064741,33.20001935,144.53,144.44,16.55357104]
[1641657064941,33.20001935,144.53,144.45,27.66479]
[1641657065641,33.20001935,144.53,144.44,12.55357104]
[1641657065842,5.53624476,144.51,144.44,6.92257104]
[1641657066141,5.53624476,144.51,144.42,69.2111]
[1641657066543,5.53624476,144.51,144.44,6.92257104]
[1641657066842,5.53624476,144.51,144.44,34.58736104]
[1641657067042,27.66479,144.53,144.45,4.0]
[1641657067243,27.66479,144.53,144.45,8.406]
[1641657067443,27.66479,144.53,144.46,7.13518166]
[1641657067641,27.66479,144.53,144.47,4.0]
[1641657067942,27.66479,144.53,144.46,3.13518166]
[1641657068742,27.66479,144.53,144.48,3.13518166]
[1641657068942,27.66479,144.53,144.48,10.78118166]
[1641657069744,27.66479,144.53,144.48,7.646]
[1641657070642,47.66479,144.56,144.48,7.646]
[1641657070843,27.66479,144.56,144.48,46.23168418]
[1641657071043,27.66479,144.58,144.52,4.0]
[1641657071243,27.66479,144.58,144.52,10.184]
[1641657071443,27.66479,144.58,144.52,6.184]
[1641657072247,6.63935781,144.6,144.53,4.0]
[1641657072445,5.53126191,144.64,144.55,4.0]
[1641657072644,5.53126191,144.64,144.55,7.721]
[1641657072846,27.66479,144.63,144.56,31.66479]
[1641657073046,27.66479,144.63,144.56,27.66479]
[1641657073246,27.66479,144.63,144.56,31.66479]
[1641657073447,27.66479,144.63,144.56,27.66479]
[1641657073745,27.66479,144.63,144.57,6.91634679]
[1641657074547,27.66479,144.63,144.55,7.721]
[1641657074946,27.66479,144.63,144.58,4.0]
[1641657075148,27.66479,144.65,144.58,6.475]
[1641657075547,27.66479,144.65,144.58,10.475]
[1641657075747,27.66479,144.65,144.6,6.9151511]
[1641657075947,9.5539596,144.7,144.62,4.0]
[1641657076147,5.52774373,144.73,144.62,7.304]
[1641657076948,27.66479,144.7,144.62,34.96879]
[1641657078850,4.0,144.69,144.62,7.304]
[1641657079249,5.52996241,144.67,144.62,7.304]
[1641657079549,5.52996241,144.67,144.61,64.997]
[1641657080952,27.66479,144.66,144.61,64.997]
[1641657081755,5.53090211,144.65,144.56,6.91682518]
[1641657082156,5.53130931,144.64,144.56,6.91682518]
[1641657082355,13.79730931,144.64,144.56,6.91682518]
[1641657082556,5.53207306,144.62,144.53,4.8428055]
[1641657082755,5.53207306,144.62,144.53,71.7107055]
[1641657082955,27.66479,144.57,144.53,71.7107055]
[1641657083155,27.66479,144.57,144.53,66.8679]
[1641657083356,27.66479,144.57,144.5,29.39379]
[1641657083558,27.66479,144.57,144.49,6.92017577]
[1641657084756,33.19849806,144.57,144.49,6.92017577]
[1641657084958,55.32958,144.57,144.49,6.92017577]
[1641657088467,27.66479,144.57,144.49,6.92017577]
[1641657089270,27.66479,144.57,144.49,10.92017577]
[1641657089469,27.66479,144.57,144.49,6.92017577]
[1641657089770,27.66479,144.57,144.49,19.40217577]
[1641657089971,27.66479,144.57,144.49,15.40217577]
[1641657090171,27.66479,144.57,144.5,4.0]
[1641657090971,27.66479,144.57,144.51,27.66479]
[1641657093176,27.66479,144.57,144.5,4.8428055]
[1641657093375,34.99079,144.57,144.5,4.8428055]
[1641657093574,4.0,144.53,144.5,4.8428055]
[1641657093776,12.454,144.53,144.5,4.8428055]
[1641657093976,5.53594784,144.52,144.5,4.8428055]
[1641657094575,5.53594784,144.52,144.48,7.97012206]
[1641657095074,27.66479,144.51,144.48,7.97012206]
[1641657095477,27.66479,144.51,144.48,4.8428055]
[1641657095681,27.66479,144.51,144.46,11.76465779]
[1641657097284,27.66479,144.51,144.47,7.97316307]
[1641657099087,27.66479,144.51,144.48,4.8428055]
[1641657099688,5.53594784,144.52,144.48,4.8428055]
[1641657100587,32.5075955,144.57,144.48,4.8428055]
[1641657100792,5.53449417,144.55,144.48,4.8428055]
[1641657102394,5.53561836,144.52,144.47,7.97316307]
[1641657102592,11.71261836,144.52,144.47,7.97316307]
[1641657103192,27.66479,144.5,144.47,7.97316307]
[1641657103396,27.66479,144.5,144.46,4.8428055]
[1641657103993,5.53561836,144.52,144.46,4.8428055]
[1641657104894,12.0,144.5,144.46,4.8428055]
[1641657105294,12.0,144.5,144.47,4.8428055]
[1641657105997,4.0,144.48,144.45,3.13035757]
[1641657106195,4.0,144.47,144.44,14.54966425]
[1641657106394,5.53822584,144.46,144.44,14.54966425]
[1641657107194,12.0,144.5,144.44,14.54966425]
[1641657107394,12.0,144.5,144.44,49.16645425]
[1641657107594,12.0,144.5,144.45,6.92209186]
[1641657107794,12.0,144.5,144.43,6.92328995]
[1641657108393,12.0,144.5,144.41,3.12959864]
[1641657108596,17.37,144.5,144.41,3.12959864]
[1641657108794,5.53693368,144.49,144.44,7.12959864]
[1641657108994,12.0,144.5,144.44,7.12959864]
[1641657109194,12.0,144.5,144.44,3.12959864]
[1641657109794,12.0,144.5,144.45,3.12959864]
[1641657109994,12.0,144.5,144.45,11.94059864]
[1641657110796,12.0,144.5,144.46,3.12959864]
[1641657112596,12.0,144.5,144.45,17.67926289]
[1641657113598,12.0,144.5,144.44,17.67926289]
[1641657113800,16.0,144.5,144.44,17.67926289]
[1641657114198,12.0,144.5,144.44,17.67926289]
[1641657114399,12.0,144.5,144.46,14.54966425]
[1641657115501,12.0,144.5,144.44,3.12959864]
[1641657115900,4.13166756,144.5,144.44,3.12959864]
[1641657116101,5.53707517,144.49,144.44,3.12959864]
[1641657116500,5.53707517,144.49,144.44,17.67926289]
[1641657118203,5.53707517,144.49,144.44,3.12959864]
[1641657118905,5.53832069,144.45,144.44,3.12959864]
[1641657119104,11.92632069,144.45,144.44,3.12959864]
[1641657119306,5.53871553,144.44,144.43,14.54966425]
[1641657119506,5.53871553,144.44,144.4,38.8088279]
[1641657119704,27.66479,144.41,144.4,27.26821636]
[1641657119904,35.53979,144.41,144.39,25.31401636]
[1641657120305,4.0,144.4,144.35,58.69048411]
[1641657120908,4.0,144.39,144.34,16.77494013]
[1641657121706,24.0,144.35,144.31,22.69048411]
[1641657121906,4.0,144.33,144.31,16.77662543]
[1641657122107,7.287,144.35,144.31,16.77662543]
[1641657123108,7.287,144.35,144.28,6.93024706]
[1641657124409,55.32958,144.37,144.28,6.93024706]
[1641657124609,55.32958,144.37,144.28,14.65324706]
[1641657124810,59.32958,144.37,144.28,14.65324706]
[1641657125109,55.32958,144.37,144.28,14.65324706]
[1641657125409,59.32958,144.37,144.28,14.65324706]
[1641657125711,55.32958,144.37,144.28,14.65324706]
[1641657126812,55.32958,144.37,144.32,6.92832646]
[1641657127110,7.97725429,144.42,144.35,6.92688671]
[1641657127312,7.97415829,144.47,144.36,4.0]
[1641657127710,7.97415829,144.47,144.38,6.92544756]
[1641657127912,7.97415829,144.47,144.38,13.99044756]
[1641657130113,7.97415829,144.47,144.38,6.92544756]
[1641657131716,7.97415829,144.47,144.38,34.59023756]
[1641657132114,4.0,144.46,144.38,34.59023756]
[1641657132314,7.97415829,144.47,144.38,34.59023756]
[1641657132916,11.97415829,144.47,144.38,34.59023756]
[1641657133718,31.66479,144.41,144.35,6.92688671]
[1641657133919,27.66479,144.41,144.34,68.7572]
[1641657135121,4.0,144.38,144.34,68.7572]
[1641657135320,8.236,144.38,144.29,6.93000693]
[1641657135520,5.54225751,144.35,144.29,6.93000693]
[1641657135720,27.66479,144.34,144.29,6.93000693]
[1641657137926,8.236,144.38,144.29,6.93000693]
[1641657138129,34.31383232,144.39,144.29,6.93000693]
[1641657138330,38.31383232,144.39,144.29,6.93000693]